fUST/lending_fUST_20250520
["ID","MTS","AMOUNT","RATE_DAILY","PERIOD"]
[361719012,1747723845979,-153.0,0.00016767,2]
[361719013,1747723845988,-306.0,0.00016767,2]
[361719014,1747723845998,-306.0,0.00016767,2]
[361719015,1747723846008,-153.0,0.00016767,2]
[361719016,1747723846018,-153.0,0.00016767,2]
[361719017,1747723846028,-153.0,0.00016767,2]
[361719018,1747723846039,-307.9754932,0.00016767,2]
[361719019,1747723846048,-153.0,0.00016767,2]
[361719020,1747723846058,-323.58398378,0.00016829,2]
[361719021,1747723846068,-250.0,0.0001688,2]
[361719022,1747723846079,-630.97471213,0.00016886,2]
[361719023,1747723846089,-162.238917,0.00016899,2]
[361719024,1747723846100,-162.238917,0.00016899,2]
[361719025,1747723846111,-153.0,0.000169,2]
[361719026,1747723846132,-153.0,0.000169,2]
[361719027,1747723846148,-2695.38189613,0.00016934,2]
[361719028,1747723846162,-215.0738,0.0001696,2]
[361719029,1747723846172,-545.532643,0.00016985,2]
[361719030,1747723846182,-545.532643,0.00016985,2]
[361719031,1747723846192,-545.532643,0.00016986,2]
[361719032,1747723846202,-545.532643,0.00016986,2]
[361719033,1747723846211,-545.532643,0.00016986,2]
[361719034,1747723846221,-545.532651,0.00016986,2]
[361719035,1747723846230,-430.0,0.00016986,2]
[361719036,1747723846240,-430.0,0.00016986,2]
[361719037,1747723846250,-430.0,0.00016986,2]
[361719038,1747723846259,-162.238917,0.00016986,2]
[361719039,1747723846268,-162.238917,0.00016986,2]
[361719040,1747723846277,-162.238917,0.00016986,2]
[361719041,1747723846287,-162.238926,0.00016986,2]
[361719042,1747723846296,-430.0,0.00016986,2]
[361719043,1747723846306,-671.11,0.00016986,2]
[361719044,1747723846315,-552.69,0.00016986,2]
[361719045,1747723846325,-522.33,0.00016986,2]
[361719046,1747723846334,-430.0,0.00016986,2]
[361719047,1747723846344,-430.0,0.00016986,2]
[361719048,1747723846353,-778.55,0.00016986,2]
[361719049,1747723846362,-430.0,0.00016986,2]
[361719050,1747723846372,-430.0,0.00016986,2]
[361719051,1747723846382,-430.0,0.00016986,2]
[361719052,1747723846391,-453.98,0.00016986,2]
[361719053,1747723846401,-523.69,0.00016986,2]
[361719054,1747723846410,-430.0,0.00016986,2]
[361719055,1747723846420,-686.53,0.00016986,2]
[361719056,1747723846429,-430.0,0.00016986,2]
[361719057,1747723846439,-630.62,0.00016986,2]
[361719058,1747723846448,-484.84,0.00016986,2]
[361719059,1747723846458,-430.0,0.00016986,2]
[361719060,1747723846468,-430.0,0.00016986,2]
[361719061,1747723846477,-683.64,0.00016986,2]
[361719062,1747723846487,-430.0,0.00016986,2]
[361719063,1747723846496,-340.0,0.00016986,2]
[361719064,1747723846506,-465.83,0.00016986,2]
[361719065,1747723846516,-1355.93,0.00016986,2]
[361719066,1747723846527,-679.09,0.00016986,2]
[361719067,1747723846537,-1257.94,0.00016986,2]
[361719068,1747723846548,-430.0,0.00016986,2]
[361719069,1747723846558,-430.0,0.00016986,2]
[361719070,1747723846570,-384.19708512,0.00016986,2]
[361719071,1747723846580,-430.0,0.00016986,2]
[361719072,1747723846590,-430.0,0.00016986,2]
[361719073,1747723846601,-430.0,0.00016986,2]
[361719074,1747723846611,-430.0,0.00016986,2]
[361719075,1747723846622,-680.31,0.00016986,2]
[361719076,1747723846632,-1008.71,0.00016986,2]
[361719077,1747723846642,-619.76,0.00016986,2]
[361719078,1747723846652,-438.81,0.00016986,2]
[361719079,1747723846793,-612.09,0.00016986,2]
[361719080,1747723846803,-445.3,0.00016986,2]
[361719081,1747723846812,-430.0,0.00016986,2]
[361719082,1747723846821,-151.0,0.00016986,2]
[361719083,1747723846831,-576.92,0.00016986,2]
[361719084,1747723846840,-151.0,0.00016986,2]
[361719085,1747723846850,-514.34,0.00016986,2]
[361719086,1747723846862,-177.232994,0.00016986,2]
[361719087,1747723846873,-804.3,0.00016986,2]
[361719088,1747723846882,-506.14,0.00016986,2]
[361719089,1747723846891,-430.0,0.00016986,2]
[361719090,1747723846900,-510.0,0.00016986,2]
[361719091,1747723846910,-793.61,0.00016986,2]
[361719092,1747723846922,-430.0,0.00016986,2]
[361719093,1747723846934,-186.61729236,0.00016986,2]
[361719094,1747723846944,-691.98,0.00016986,2]
[361719095,1747723846953,-430.0,0.00016986,2]
[361719096,1747723846963,-430.0,0.00016986,2]
[361719097,1747723846974,-445.15,0.00016986,2]
[361719098,1747723846985,-430.0,0.00016986,2]
[361719099,1747723846994,-430.0,0.00016986,2]
[361719100,1747723847004,-482.21,0.00016986,2]
[361719101,1747723847014,-430.0,0.00016986,2]
[361719102,1747723847026,-465.09,0.00016986,2]
[361719103,1747723847036,-430.0,0.00016986,2]
[361719104,1747723847047,-430.0,0.00016986,2]
[361719105,1747723847057,-430.0,0.00016986,2]
[361719106,1747723847068,-430.0,0.00016986,2]
[361719107,1747723847079,-510.0,0.00016986,2]
[361719108,1747723847089,-430.0,0.00016986,2]
[361719109,1747723847099,-430.0,0.00016986,2]
[361719110,1747723847109,-430.0,0.00016986,2]
[361719111,1747723847119,-430.0,0.00016986,2]
[361719112,1747723847128,-1168.87,0.00016986,2]
[361719113,1747723847138,-302.869616,0.00016986,2]
[361719114,1747723847149,-302.869616,0.00016986,2]
[361719115,1747723847158,-450.19,0.00016986,2]
[361719116,1747723847167,-302.869616,0.00016986,2]
[361719117,1747723847179,-302.869609,0.00016986,2]
[361719118,1747723847188,-544.4,0.00016986,2]
[361719119,1747723847199,-430.0,0.00016986,2]
[361719120,1747723847208,-430.0,0.00016986,2]
[361719121,1747723847219,-430.0,0.00016986,2]
[361719122,1747723847229,-510.0,0.00016986,2]
[361719123,1747723847239,-704.26,0.00016986,2]
[361719124,1747723847248,-521.49,0.00016986,2]
[361719125,1747723847258,-1063.65,0.00016986,2]
[361719126,1747723847267,-430.0,0.00016986,2]
[361719127,1747723847277,-1628.78,0.00016986,2]
[361719128,1747723847287,-430.0,0.00016986,2]
[361719129,1747723847296,-430.0,0.00016986,2]
[361719130,1747723847305,-430.0,0.00016986,2]
[361719131,1747723847315,-430.0,0.00016986,2]
[361719132,1747723847325,-449.56,0.00016986,2]
[361719133,1747723847335,-430.0,0.00016986,2]
[361719134,1747723847344,-858.66,0.00016986,2]
[361719135,1747723847354,-490.0,0.00016986,2]
[361719136,1747723847364,-1356.57,0.00016986,2]
[361719137,1747723847374,-3513.69,0.00016986,2]
[361719138,1747723847384,-430.0,0.00016986,2]
[361719139,1747723847393,-430.0,0.00016986,2]
[361719140,1747723847404,-1048.66,0.00016986,2]
[361719141,1747723847413,-430.0,0.00016986,2]
[361719142,1747723847422,-430.0,0.00016986,2]
[361719143,1747723847434,-1040.76,0.00016986,2]
[361719144,1747723847444,-5324.25,0.00016986,2]
[361719145,1747723847454,-435.84,0.00016986,2]
[361719146,1747723847464,-430.0,0.00016986,2]
[361719147,1747723847473,-1539.83,0.00016986,2]
[361719148,1747723847483,-430.0,0.00016986,2]
[361719149,1747723847492,-613.05,0.00016986,2]
[361719150,1747723847502,-651.71,0.00016986,2]
[361719151,1747723847512,-930.14,0.00016986,2]
[361719152,1747723847521,-430.0,0.00016986,2]
[361719153,1747723847531,-430.0,0.00016986,2]
[361719154,1747723847541,-598.92,0.00016986,2]
[361719155,1747723847551,-430.0,0.00016986,2]
[361719156,1747723847560,-2078.85,0.00016986,2]
[361719157,1747723847570,-504.48,0.00016986,2]
[361719158,1747723847580,-1167.64,0.00016986,2]
[361719159,1747723847591,-430.0,0.00016986,2]
[361719160,1747723847602,-430.0,0.00016986,2]
[361719161,1747723847612,-188.3344092,0.00016986,2]
[361719162,1747723847623,-430.0,0.00016986,2]
[361719163,1747723847632,-1689.44,0.00016986,2]
[361719164,1747723847641,-430.0,0.00016986,2]
[361719165,1747723847651,-430.0,0.00016986,2]
[361719166,1747723847661,-2287.87,0.00016986,2]
[361719167,1747723847671,-430.0,0.00016986,2]
[361719168,1747723847680,-514.86,0.00016986,2]
[361719169,1747723847691,-547.54,0.00016986,2]
[361719170,1747723847700,-463.32,0.00016986,2]
[361719171,1747723847709,-1016.43,0.00016986,2]
[361719172,1747723847719,-409.22602945,0.00016986,2]
[361719173,1747723847729,-764.69,0.00016986,2]
[361719174,1747723847738,-430.0,0.00016986,2]
[361719175,1747723847749,-830.36,0.00016986,2]
[361719176,1747723847759,-1078.82,0.00016986,2]
[361719177,1747723847768,-430.0,0.00016986,2]
[361719178,1747723847779,-811.22,0.00016986,2]
[361719179,1747723847789,-430.0,0.00016986,2]
[361719180,1747723847800,-430.0,0.00016986,2]
[361719181,1747723847810,-1368.03,0.00016986,2]
[361719182,1747723847821,-1103.51,0.00016986,2]
[361719183,1747723847830,-3044.86,0.00016986,2]
[361719184,1747723847840,-1504.99,0.00016986,2]
[361719185,1747723847851,-2065.01,0.00016986,2]
[361719186,1747723847860,-1487.12,0.00016986,2]
[361719187,1747723847870,-1014.74,0.00016986,2]
[361719188,1747723847880,-2175.3,0.00016986,2]
[361719189,1747723847889,-526.35,0.00016986,2]
[361719190,1747723847899,-7842.52,0.00016986,2]
[361719191,1747723847909,-1424.73,0.00016986,2]
[361719192,1747723847918,-913.17,0.00016986,2]
[361719193,1747723847929,-2097.63,0.00016986,2]
[361719194,1747723847943,-1558.57,0.00016986,2]
[361719195,1747723847953,-864.07,0.00016986,2]
[361719196,1747723847963,-950.4,0.00016986,2]
[361719197,1747723847973,-430.0,0.00016986,2]
[361719198,1747723847983,-151.0,0.00016986,2]
[361719199,1747723847993,-430.0,0.00016986,2]
[361719200,1747723848004,-7721.78,0.00016986,2]
[361719201,1747723848014,-530.31,0.00016986,2]
[361719202,1747723848024,-430.0,0.00016986,2]
[361719203,1747723848035,-456.32,0.00016986,2]
[361719204,1747723848045,-3791.07,0.00016986,2]
[361719205,1747723848056,-490.0,0.00016986,2]
[361719206,1747723848066,-929.62,0.00016986,2]
[361719207,1747723848077,-1307.16,0.00016986,2]
[361719208,1747723848087,-430.0,0.00016986,2]
[361719209,1747723848097,-1518.72,0.00016986,2]
[361719210,1747723848107,-1758.16,0.00016986,2]
[361719211,1747723848118,-1079.57,0.00016986,2]
[361719212,1747723848129,-1423.99,0.00016986,2]
[361719213,1747723848139,-430.0,0.00016986,2]
[361719214,1747723848148,-319.84237487,0.00016986,2]
[361719215,1747723848158,-430.0,0.00016986,2]
[361719216,1747723848167,-538.89,0.00016986,2]
[361719217,1747723848177,-611.82,0.00016986,2]
[361719218,1747723848187,-430.0,0.00016986,2]
[361719219,1747723848196,-1687.09,0.00016986,2]
[361719220,1747723848205,-788.06,0.00016986,2]
[361719221,1747723848216,-430.0,0.00016986,2]
[361719222,1747723848225,-2323.68,0.00016986,2]
[361719223,1747723848235,-2853.34,0.00016986,2]
[361719224,1747723848245,-3454.83,0.00016986,2]
[361719225,1747723848254,-430.0,0.00016986,2]
[361719226,1747723848263,-5847.34,0.00016986,2]
[361719227,1747723848273,-430.0,0.00016986,2]
[361719228,1747723848283,-430.0,0.00016986,2]
[361719229,1747723848292,-2319.49,0.0001699,3]
[361719230,1747723848302,-1200.0,0.00017135,2]
[361719231,1747723848311,-500.0,0.00017192,2]
[361719232,1747723848321,-500.0,0.00017192,2]
[361719233,1747723848330,-250.0,0.000172,2]
[361719234,1747723848340,-500.0,0.00017211,2]
[361719235,1747723848349,-500.0,0.00017211,2]
[361719236,1747723848358,-500.0,0.00017211,2]
[361719237,1747723848368,-500.0,0.00017237,2]
[361719238,1747723848378,-500.0,0.00017237,2]
[361719239,1747723848388,-576.55657672,0.0001724,2]
[361719240,1747723848398,-500.0,0.0001724,2]
[361719241,1747723848407,-500.0,0.0001724,2]
[361719242,1747723848416,-500.0,0.0001724,2]
[361719243,1747723848426,-500.0,0.0001724,2]
[361719244,1747723848436,-500.0,0.0001724,2]
[361719245,1747723848446,-500.0,0.0001724,2]
[361719246,1747723848456,-500.0,0.0001724,2]
[361719247,1747723848466,-500.0,0.0001724,2]
[361719248,1747723848476,-500.0,0.00017246,2]
[361719249,1747723848486,-500.0,0.00017246,2]
[361719250,1747723848495,-500.0,0.00017246,2]
[361719251,1747723848505,-500.0,0.00017246,2]
[361719252,1747723848515,-500.0,0.00017246,2]
[361719253,1747723848525,-290.8943326,0.0001726,2]
[361719254,1747723848535,-430.0,0.0001726,2]
[361719255,1747723848545,-430.0,0.0001726,2]
[361719256,1747723848555,-430.0,0.0001726,2]
[361719257,1747723848564,-671.11,0.0001726,2]
[361719258,1747723848575,-552.69,0.0001726,2]
[361719259,1747723848585,-522.33,0.0001726,2]
[361719260,1747723848595,-430.0,0.0001726,2]
[361719261,1747723848604,-415.19592055,0.0001726,2]
[361719262,1747723848613,-778.55,0.0001726,2]
[361719263,1747723848623,-430.0,0.0001726,2]
[361719264,1747723848633,-430.0,0.0001726,2]
[361719265,1747723848642,-430.0,0.0001726,2]
[361719266,1747723848651,-453.98,0.0001726,2]
[361719267,1747723848661,-523.69,0.0001726,2]
[361719268,1747723848671,-430.0,0.0001726,2]
[361719269,1747723848680,-686.53,0.0001726,2]
[361719270,1747723848690,-430.0,0.0001726,2]
[361719271,1747723848700,-630.62,0.0001726,2]
[361719272,1747723848709,-484.84,0.0001726,2]
[361719273,1747723848719,-430.0,0.0001726,2]
[361719274,1747723848728,-430.0,0.0001726,2]
[361719275,1747723848738,-683.64,0.0001726,2]
[361719276,1747723848747,-430.0,0.0001726,2]
[361719277,1747723848757,-465.83,0.0001726,2]
[361719278,1747723848766,-1355.93,0.0001726,2]
[361719279,1747723848776,-679.09,0.0001726,2]
[361719280,1747723848786,-1257.94,0.0001726,2]
[361719281,1747723848795,-430.0,0.0001726,2]
[361719282,1747723848805,-430.0,0.0001726,2]
[361719283,1747723848814,-430.0,0.0001726,2]
[361719284,1747723848824,-430.0,0.0001726,2]
[361719285,1747723848834,-430.0,0.0001726,2]
[361719286,1747723848844,-430.0,0.0001726,2]
[361719287,1747723848854,-680.31,0.0001726,2]
[361719288,1747723848865,-1008.71,0.0001726,2]
[361719289,1747723848877,-619.76,0.0001726,2]
[361719290,1747723848887,-438.81,0.0001726,2]
[361719291,1747723848897,-612.09,0.0001726,2]
[361719292,1747723848908,-445.3,0.0001726,2]
[361719293,1747723848918,-430.0,0.0001726,2]
[361719294,1747723848929,-576.92,0.0001726,2]
[361719295,1747723848941,-514.34,0.0001726,2]
[361719296,1747723848951,-804.3,0.0001726,2]
[361719297,1747723848961,-506.14,0.0001726,2]
[361719298,1747723848971,-430.0,0.0001726,2]
[361719299,1747723848981,-793.61,0.0001726,2]
[361719300,1747723848991,-430.0,0.0001726,2]
[361719301,1747723849000,-691.98,0.0001726,2]
[361719302,1747723849011,-430.0,0.0001726,2]
[361719303,1747723849021,-430.0,0.0001726,2]
[361719304,1747723849031,-445.15,0.0001726,2]
[361719305,1747723849041,-430.0,0.0001726,2]
[361719306,1747723849050,-430.0,0.0001726,2]
[361719307,1747723849059,-482.21,0.0001726,2]
[361719308,1747723849069,-430.0,0.0001726,2]
[361719309,1747723849079,-465.09,0.0001726,2]
[361719310,1747723849089,-154.57635743,0.0001726,2]
[361719311,1747723849099,-430.0,0.0001726,2]
[361719312,1747723849109,-430.0,0.0001726,2]
[361719313,1747723849119,-430.0,0.0001726,2]
[361719314,1747723849132,-430.0,0.0001726,2]
[361719315,1747723849142,-297.78146172,0.0001726,2]
[361719316,1747723849151,-430.0,0.0001726,2]
[361719317,1747723849161,-430.0,0.0001726,2]
[361719318,1747723849170,-1168.87,0.0001726,2]
[361719319,1747723849180,-450.19,0.0001726,2]
[361719320,1747723849190,-544.4,0.0001726,2]
[361719321,1747723849199,-430.0,0.0001726,2]
[361719322,1747723849209,-511.48246085,0.0001726,2]
[361719323,1747723849218,-430.0,0.0001726,2]
[361719324,1747723849228,-704.26,0.0001726,2]
[361719325,1747723849237,-521.49,0.0001726,2]
[361719326,1747723849248,-1063.65,0.0001726,2]
[361719327,1747723849258,-430.0,0.0001726,2]
[361719328,1747723849268,-1628.78,0.0001726,2]
[361719329,1747723849279,-430.0,0.0001726,2]
[361719330,1747723849289,-430.0,0.0001726,2]
[361719331,1747723849298,-430.0,0.0001726,2]
[361719332,1747723849308,-430.0,0.0001726,2]
[361719333,1747723849317,-449.56,0.0001726,2]
[361719334,1747723849327,-430.0,0.0001726,2]
[361719335,1747723849336,-858.66,0.0001726,2]
[361719336,1747723849346,-1356.57,0.0001726,2]
[361719337,1747723849356,-3513.69,0.0001726,2]
[361719338,1747723849366,-430.0,0.0001726,2]
[361719339,1747723849376,-430.0,0.0001726,2]
[361719340,1747723849386,-1048.66,0.0001726,2]
[361719341,1747723849395,-546.79994512,0.0001726,2]
[361719342,1747723849405,-430.0,0.0001726,2]
[361719343,1747723849414,-1040.76,0.0001726,2]
[361719344,1747723849424,-5324.25,0.0001726,2]
[361719345,1747723849433,-435.84,0.0001726,2]
[361719346,1747723849443,-430.0,0.0001726,2]
[361719347,1747723849453,-1539.83,0.0001726,2]
[361719348,1747723849462,-430.0,0.0001726,2]
[361719349,1747723849471,-613.05,0.0001726,2]
[361719350,1747723849481,-651.71,0.0001726,2]
[361719351,1747723849491,-930.14,0.0001726,2]
[361719352,1747723849501,-379.44683031,0.0001726,2]
[361719353,1747723849511,-430.0,0.0001726,2]
[361719354,1747723849520,-598.92,0.0001726,2]
[361719355,1747723849530,-430.0,0.0001726,2]
[361719356,1747723849540,-2078.85,0.0001726,2]
[361719357,1747723849550,-504.48,0.0001726,2]
[361719358,1747723849560,-1167.64,0.0001726,2]
[361719359,1747723849569,-430.0,0.0001726,2]
[361719360,1747723849578,-500.62481547,0.0001726,2]
[361719361,1747723849769,-430.0,0.0001726,2]
[361719362,1747723849779,-1689.44,0.0001726,2]
[361719363,1747723849788,-430.0,0.0001726,2]
[361719364,1747723849798,-430.0,0.0001726,2]
[361719365,1747723849808,-2287.87,0.0001726,2]
[361719366,1747723849820,-430.0,0.0001726,2]
[361719367,1747723849830,-514.86,0.0001726,2]
[361719368,1747723849840,-547.54,0.0001726,2]
[361719369,1747723849850,-463.32,0.0001726,2]
[361719370,1747723849860,-1016.43,0.0001726,2]
[361719371,1747723849872,-764.69,0.0001726,2]
[361719372,1747723849882,-430.0,0.0001726,2]
[361719373,1747723849892,-830.36,0.0001726,2]
[361719374,1747723849902,-1078.82,0.0001726,2]
[361719375,1747723849913,-430.0,0.0001726,2]
[361719376,1747723849924,-811.22,0.0001726,2]
[361719377,1747723849935,-430.0,0.0001726,2]
[361719378,1747723849945,-430.0,0.0001726,2]
[361719379,1747723849955,-1368.03,0.0001726,2]
[361719380,1747723849964,-1103.51,0.0001726,2]
[361719381,1747723849974,-3044.86,0.0001726,2]
[361719382,1747723849985,-1504.99,0.0001726,2]
[361719383,1747723849995,-2065.01,0.0001726,2]
[361719384,1747723850005,-1487.12,0.0001726,2]
[361719385,1747723850019,-1014.74,0.0001726,2]
[361719386,1747723850029,-2175.3,0.0001726,2]
[361719387,1747723850039,-526.35,0.0001726,2]
[361719388,1747723850048,-7842.52,0.0001726,2]
[361719389,1747723850058,-1424.73,0.0001726,2]
[361719390,1747723850067,-913.17,0.0001726,2]
[361719391,1747723850077,-2097.63,0.0001726,2]
[361719392,1747723850086,-1558.57,0.0001726,2]
[361719393,1747723850096,-864.07,0.0001726,2]
[361719394,1747723850107,-950.4,0.0001726,2]
[361719395,1747723850117,-430.0,0.0001726,2]
[361719396,1747723850127,-430.0,0.0001726,2]
[361719397,1747723850137,-7721.78,0.0001726,2]
[361719398,1747723850147,-530.31,0.0001726,2]
[361719399,1747723850163,-430.0,0.0001726,2]
[361719400,1747723850172,-456.32,0.0001726,2]
[361719401,1747723850182,-3791.07,0.0001726,2]
[361719402,1747723850192,-929.62,0.0001726,2]
[361719403,1747723850205,-1307.16,0.0001726,2]
[361719404,1747723850215,-430.0,0.0001726,2]
[361719405,1747723850224,-1518.72,0.0001726,2]
[361719406,1747723850235,-1758.16,0.0001726,2]
[361719407,1747723850244,-1079.57,0.0001726,2]
[361719408,1747723850254,-1423.99,0.0001726,2]
[361719409,1747723850264,-430.0,0.0001726,2]
[361719410,1747723850274,-430.0,0.0001726,2]
[361719411,1747723850284,-538.89,0.0001726,2]
[361719412,1747723850293,-611.82,0.0001726,2]
[361719413,1747723850303,-430.0,0.0001726,2]
[361719414,1747723850313,-1687.09,0.0001726,2]
[361719415,1747723850322,-788.06,0.0001726,2]
[361719416,1747723850332,-430.0,0.0001726,2]
[361719417,1747723850341,-2323.68,0.0001726,2]
[361719418,1747723850351,-2853.34,0.0001726,2]
[361719419,1747723850360,-3454.83,0.0001726,2]
[361719420,1747723850371,-430.0,0.0001726,2]
[361719421,1747723850381,-5847.34,0.0001726,2]
[361719422,1747723850391,-430.0,0.0001726,2]
[361719423,1747723850401,-430.0,0.0001726,2]
[361719424,1747723850411,-255.4375429,0.0001726,2]
[361719425,1747723850421,-500.0,0.00017262,2]
[361719426,1747723850431,-500.81845434,0.00017262,2]
[361719427,1747723850442,-500.0,0.00017262,2]
[361719428,1747723850451,-2695.38189613,0.00017314,2]
[361719429,1747723850461,-500.0,0.00017367,2]
[361719430,1747723850470,-500.0,0.00017367,2]
[361719431,1747723850480,-500.0,0.00017367,2]
[361719432,1747723850490,-500.0,0.00017367,2]
[361719433,1747723850500,-500.0,0.00017367,2]
[361719434,1747723850510,-500.0,0.00017367,2]
[361719435,1747723850521,-430.0,0.00017534,2]
[361719436,1747723850532,-430.0,0.00017534,2]
[361719437,1747723850543,-430.0,0.00017534,2]
[361719438,1747723850553,-671.11,0.00017534,2]
[361719439,1747723850563,-552.69,0.00017534,2]
[361719440,1747723850574,-522.33,0.00017534,2]
[361719441,1747723850584,-430.0,0.00017534,2]
[361719442,1747723850596,-778.55,0.00017534,2]
[361719443,1747723850608,-430.0,0.00017534,2]
[361719444,1747723850618,-430.0,0.00017534,2]
[361719445,1747723850628,-430.0,0.00017534,2]
[361719446,1747723850637,-453.98,0.00017534,2]
[361719447,1747723850649,-523.69,0.00017534,2]
[361719448,1747723850659,-430.0,0.00017534,2]
[361719449,1747723850670,-686.53,0.00017534,2]
[361719450,1747723850680,-430.0,0.00017534,2]
[361719451,1747723850690,-630.62,0.00017534,2]
[361719452,1747723850700,-484.84,0.00017534,2]
[361719453,1747723850710,-430.0,0.00017534,2]
[361719454,1747723850720,-430.0,0.00017534,2]
[361719455,1747723850730,-683.64,0.00017534,2]
[361719456,1747723850740,-430.0,0.00017534,2]
[361719457,1747723850750,-465.83,0.00017534,2]
[361719458,1747723850759,-1355.93,0.00017534,2]
[361719459,1747723850769,-679.09,0.00017534,2]
[361719460,1747723850782,-1257.94,0.00017534,2]
[361719461,1747723850792,-430.0,0.00017534,2]
[361719462,1747723850801,-430.0,0.00017534,2]
[361719463,1747723850811,-430.0,0.00017534,2]
[361719464,1747723850820,-430.0,0.00017534,2]
[361719465,1747723850830,-430.0,0.00017534,2]
[361719466,1747723850840,-430.0,0.00017534,2]
[361719467,1747723850850,-680.31,0.00017534,2]
[361719468,1747723850860,-1008.71,0.00017534,2]
[361719469,1747723850870,-619.76,0.00017534,2]
[361719470,1747723850881,-438.81,0.00017534,2]
[361719471,1747723850890,-612.09,0.00017534,2]
[361719472,1747723850900,-445.3,0.00017534,2]
[361719473,1747723850910,-430.0,0.00017534,2]
[361719474,1747723850919,-576.92,0.00017534,2]
[361719475,1747723850929,-514.34,0.00017534,2]
[361719476,1747723850942,-804.3,0.00017534,2]
[361719477,1747723850952,-506.14,0.00017534,2]
[361719478,1747723850962,-430.0,0.00017534,2]
[361719479,1747723850971,-793.61,0.00017534,2]
[361719480,1747723850981,-430.0,0.00017534,2]
[361719481,1747723850992,-691.98,0.00017534,2]
[361719482,1747723851002,-430.0,0.00017534,2]
[361719483,1747723851013,-430.0,0.00017534,2]
[361719484,1747723851023,-445.15,0.00017534,2]
[361719485,1747723851032,-430.0,0.00017534,2]
[361719486,1747723851042,-430.0,0.00017534,2]
[361719487,1747723851052,-482.21,0.00017534,2]
[361719488,1747723851062,-430.0,0.00017534,2]
[361719489,1747723851072,-465.09,0.00017534,2]
[361719490,1747723851082,-430.0,0.00017534,2]
[361719491,1747723851092,-430.0,0.00017534,2]
[361719492,1747723851102,-430.0,0.00017534,2]
[361719493,1747723851112,-430.0,0.00017534,2]
[361719494,1747723851122,-430.0,0.00017534,2]
[361719495,1747723851132,-430.0,0.00017534,2]
[361719496,1747723851142,-1168.87,0.00017534,2]
[361719497,1747723851152,-450.19,0.00017534,2]
[361719498,1747723851162,-544.4,0.00017534,2]
[361719499,1747723851172,-430.0,0.00017534,2]
[361719500,1747723851182,-430.0,0.00017534,2]
[361719501,1747723851192,-704.26,0.00017534,2]
[361719502,1747723851202,-521.49,0.00017534,2]
[361719503,1747723851212,-1063.65,0.00017534,2]
[361719504,1747723851222,-430.0,0.00017534,2]
[361719505,1747723851232,-1628.78,0.00017534,2]
[361719506,1747723851242,-430.0,0.00017534,2]
[361719507,1747723851252,-430.0,0.00017534,2]
[361719508,1747723851263,-430.0,0.00017534,2]
[361719509,1747723851273,-430.0,0.00017534,2]
[361719510,1747723851282,-449.56,0.00017534,2]
[361719511,1747723851292,-430.0,0.00017534,2]